[Event "*** Titled Tuesday Blitz"]
[Site "Chess.com"]
[Date "2018.04.03"]
[Round "1"]
[White "AndrewMcStone"]
[Black "FMJoseHerrera"]
[Result "0-1"]
[WhiteElo "2113"]
[BlackElo "2484"]
[TimeControl "180+2"]
[EndTime "13:06:52 PDT"]
[Termination "FMJoseHerrera won by resignation"]

1. d4 {[%clk 0:03:00.4]} 1... Nf6 {[%clk 0:03:00.5]} 2. c4 {[%clk 0:03:01.8]}
2... c5 {[%clk 0:03:00.9]} 3. d5 {[%clk 0:03:02.2]} 3... b5 {[%clk 0:03:00.7]}
4. cxb5 {[%clk 0:03:04.1]} 4... a6 {[%clk 0:03:01.6]} 5. f3 {[%clk 0:03:05.7]}
5... g6 {[%clk 0:03:02.9]} 6. e4 {[%clk 0:03:06.9]} 6... Bg7 {[%clk 0:03:04.4]}
7. Na3 {[%clk 0:03:08.1]} 7... O-O {[%clk 0:03:05.1]} 8. Ne2 {[%clk 0:03:09.4]}
8... d6 {[%clk 0:03:04.4]} 9. Nc3 {[%clk 0:03:10.7]} 9... Nbd7 {[%clk
0:03:04.2]} 10. Be3 {[%clk 0:03:08.3]} 10... h5 {[%clk 0:03:02.4]} 11. bxa6
{[%clk 0:02:53.8]} 11... Qa5 {[%clk 0:03:01.7]} 12. Nc4 {[%clk 0:02:44.9]} 12...
Qc7 {[%clk 0:02:58.8]} 13. Nb5 {[%clk 0:02:23.6]} 13... Qb8 {[%clk 0:02:58.4]}
14. a4 {[%clk 0:02:12.6]} 14... Bxa6 {[%clk 0:02:59.1]} 15. Nca3 {[%clk
0:02:11.1]} 15... h4 {[%clk 0:02:41.8]} 16. Be2 {[%clk 0:02:07.8]} 16... h3
{[%clk 0:02:41.4]} 17. g3 {[%clk 0:02:08.5]} 17... Ne5 {[%clk 0:02:41.5]} 18.
O-O {[%clk 0:02:05.8]} 18... Qc8 {[%clk 0:02:30]} 19. Nc4 {[%clk 0:01:51.5]}
19... Bxb5 {[%clk 0:02:15.1]} 20. axb5 {[%clk 0:01:51.7]} 20... Nfd7 {[%clk
0:02:10.4]} 21. Nxe5 {[%clk 0:01:12.2]} 21... Nxe5 {[%clk 0:02:07.5]} 22. f4
{[%clk 0:01:09.2]} 22... Nd7 {[%clk 0:02:07.1]} 23. Ra6 {[%clk 0:01:03.9]} 23...
c4 {[%clk 0:01:54.8]} 24. Qa4 {[%clk 0:00:49.1]} 24... Rxa6 {[%clk 0:01:27.3]}
25. bxa6 {[%clk 0:00:36.6]} 25... c3 {[%clk 0:01:22.9]} 26. bxc3 {[%clk
0:00:12.6]} 26... Qxc3 {[%clk 0:01:24.8]} 27. Bf2 {[%clk 0:00:11.1]} 27... Nc5
{[%clk 0:01:25.6]} 28. Qc4 {[%clk 0:00:07.7]} 28... Qd2 {[%clk 0:01:22.8]} 29.
Rd1 {[%clk 0:00:07.4]} 29... Qb2 {[%clk 0:01:22.8]} 30. Qc1 {[%clk 0:00:04.8]}
30... Qxe2 {[%clk 0:01:23.2]} 0-1

[Event "*** Titled Tuesday Blitz"]
[Site "Chess.com"]
[Date "2018.04.03"]
[Round "1"]
[White "oskariot"]
[Black "mishanick"]
[Result "0-1"]
[WhiteElo "2413"]
[BlackElo "2854"]
[TimeControl "180+2"]
[EndTime "13:06:56 PDT"]
[Termination "mishanick won by resignation"]

1. e4 {[%clk 0:02:58.4]} 1... c5 {[%clk 0:02:59.7]} 2. Nf3 {[%clk 0:02:56.2]}
2... d6 {[%clk 0:03:01.1]} 3. d4 {[%clk 0:02:56]} 3... cxd4 {[%clk 0:03:03]} 4.
Nxd4 {[%clk 0:02:57.9]} 4... Nf6 {[%clk 0:03:04.3]} 5. Nc3 {[%clk 0:02:59.5]}
5... a6 {[%clk 0:03:05.4]} 6. h4 {[%clk 0:03:01.1]} 6... Nc6 {[%clk 0:02:59.7]}
7. Nb3 {[%clk 0:03:01.6]} 7... g6 {[%clk 0:02:52.4]} 8. Be2 {[%clk 0:03:01.8]}
8... h5 {[%clk 0:02:52.3]} 9. Bg5 {[%clk 0:03:01.1]} 9... Bg7 {[%clk 0:02:53.4]}
10. Qd2 {[%clk 0:03:02.1]} 10... Be6 {[%clk 0:02:50.6]} 11. O-O-O {[%clk
0:02:51.9]} 11... Rc8 {[%clk 0:02:51.9]} 12. Kb1 {[%clk 0:02:51.3]} 12... Na5
{[%clk 0:02:48.8]} 13. Nxa5 {[%clk 0:02:23.5]} 13... Qxa5 {[%clk 0:02:50.7]} 14.
Bxf6 {[%clk 0:02:22.8]} 14... Rxc3 {[%clk 0:01:59.4]} 15. Qxc3 {[%clk
0:02:20.7]} 15... Qxa2+ {[%clk 0:02:00.1]} 16. Kc1 {[%clk 0:02:21.8]} 16... Bxf6
{[%clk 0:01:58.6]} 17. Qa3 {[%clk 0:02:22.9]} 17... Qxa3 {[%clk 0:01:58.3]} 18.
bxa3 {[%clk 0:02:24.8]} 18... Kd7 {[%clk 0:01:59.5]} 19. f4 {[%clk 0:02:08.5]}
19... Rc8 {[%clk 0:01:57.2]} 20. e5 {[%clk 0:02:05.7]} 20... Bg7 {[%clk
0:01:58]} 21. Bf3 {[%clk 0:02:01]} 21... b5 {[%clk 0:01:56.8]} 22. exd6 {[%clk
0:01:00.7]} 22... exd6 {[%clk 0:01:56.4]} 23. Bd5 {[%clk 0:00:59.9]} 23... Bf5
{[%clk 0:01:49.4]} 24. Bb3 {[%clk 0:00:57.1]} 24... Rc3 {[%clk 0:01:42.9]} 25.
Rhe1 {[%clk 0:00:46.9]} 25... Rg3 {[%clk 0:01:27.9]} 26. Bxf7 {[%clk 0:00:37.2]}
26... Rxa3 {[%clk 0:01:27.6]} 27. Be8+ {[%clk 0:00:37.8]} 27... Kc8 {[%clk
0:01:20]} 28. Bf7 {[%clk 0:00:12.6]} 28... Bc3 {[%clk 0:01:13.7]} 29. Re8+
{[%clk 0:00:13.5]} 29... Kd7 {[%clk 0:01:13.6]} 0-1

[Event "*** Titled Tuesday Blitz"]
[Site "Chess.com"]
[Date "2018.04.03"]
[Round "1"]
[White "LuisFSiles"]
[Black "kasparik_garik"]
[Result "0-1"]
[WhiteElo "2156"]
[BlackElo "2517"]
[TimeControl "180+2"]
[EndTime "13:06:57 PDT"]
[Termination "kasparik_garik won by checkmate"]

1. e4 {[%clk 0:02:59.1]} 1... g6 {[%clk 0:02:56.8]} 2. Nc3 {[%clk 0:02:59.1]}
2... Bg7 {[%clk 0:02:57.6]} 3. f4 {[%clk 0:03:00]} 3... c5 {[%clk 0:02:57.6]} 4.
Nf3 {[%clk 0:03:01]} 4... Nc6 {[%clk 0:02:58.7]} 5. d3 {[%clk 0:02:59.2]} 5...
d6 {[%clk 0:02:59.4]} 6. Be2 {[%clk 0:03:00.3]} 6... Nf6 {[%clk 0:02:59.5]} 7.
O-O {[%clk 0:03:01.8]} 7... O-O {[%clk 0:03:00.6]} 8. Qe1 {[%clk 0:03:03.4]}
8... Bg4 {[%clk 0:03:01.3]} 9. Qh4 {[%clk 0:03:02.8]} 9... Bxf3 {[%clk
0:03:02.3]} 10. Bxf3 {[%clk 0:03:00.6]} 10... Nd4 {[%clk 0:03:03.4]} 11. Bd1
{[%clk 0:03:01.3]} 11... e6 {[%clk 0:03:03.6]} 12. Ne2 {[%clk 0:03:01.4]} 12...
Nd7 {[%clk 0:03:04.1]} 13. Qxd8 {[%clk 0:03:01.3]} 13... Rfxd8 {[%clk
0:03:02.3]} 14. c3 {[%clk 0:03:01.6]} 14... Nxe2+ {[%clk 0:03:02.3]} 15. Bxe2
{[%clk 0:03:03.5]} 15... b5 {[%clk 0:02:59.8]} 16. a3 {[%clk 0:03:03]} 16...
Rab8 {[%clk 0:02:59.7]} 17. Bd2 {[%clk 0:03:01.9]} 17... a5 {[%clk 0:03:00]} 18.
Rfc1 {[%clk 0:02:54.3]} 18... f5 {[%clk 0:03:00]} 19. Bf3 {[%clk 0:02:51.6]}
19... Kf7 {[%clk 0:03:00.9]} 20. Kf2 {[%clk 0:02:51.2]} 20... Nb6 {[%clk
0:02:52.6]} 21. b3 {[%clk 0:02:45.8]} 21... d5 {[%clk 0:02:47.9]} 22. e5 {[%clk
0:02:42.5]} 22... c4 {[%clk 0:02:47.2]} 23. bxc4 {[%clk 0:02:39.8]} 23... dxc4
{[%clk 0:02:42.4]} 24. d4 {[%clk 0:02:39.7]} 24... Bf8 {[%clk 0:02:31.6]} 25.
Rcb1 {[%clk 0:02:38.3]} 25... Nd5 {[%clk 0:02:32.5]} 26. Bxd5 {[%clk 0:02:35.2]}
26... Rxd5 {[%clk 0:02:31.5]} 27. Be3 {[%clk 0:02:26.4]} 27... Be7 {[%clk
0:02:26.2]} 28. g3 {[%clk 0:02:23.5]} 28... Ke8 {[%clk 0:02:25.9]} 29. h4 {[%clk
0:02:23.7]} 29... h5 {[%clk 0:02:23.8]} 30. Ke2 {[%clk 0:02:23.3]} 30... Kd7
{[%clk 0:02:24.7]} 31. Ra2 {[%clk 0:02:20.4]} 31... Kc6 {[%clk 0:02:24.8]} 32.
Kd2 {[%clk 0:02:17.7]} 32... Rd7 {[%clk 0:02:22.3]} 33. Kc2 {[%clk 0:02:18.4]}
33... Kd5 {[%clk 0:02:20.4]} 34. Kd2 {[%clk 0:02:15.7]} 34... Rdb7 {[%clk
0:02:20.7]} 35. Kc2 {[%clk 0:02:08.1]} 35... b4 {[%clk 0:02:18.3]} 36. axb4
{[%clk 0:02:08.3]} 36... axb4 {[%clk 0:02:19.3]} 37. Ra5+ {[%clk 0:02:06.5]}
37... Ke4 {[%clk 0:02:05.4]} 38. Bd2 {[%clk 0:02:07]} 38... b3+ {[%clk
0:01:51.6]} 39. Kb2 {[%clk 0:02:04.8]} 39... Kd3 {[%clk 0:01:47.6]} 40. Be1
{[%clk 0:02:05.4]} 40... Rb5 {[%clk 0:01:45.1]} 41. Ra7 {[%clk 0:02:03.7]} 41...
R8b7 {[%clk 0:01:43.5]} 42. Ra8 {[%clk 0:02:00]} 42... Bd8 {[%clk 0:01:40]} 43.
Rba1 {[%clk 0:01:58.2]} 43... Bb6 {[%clk 0:01:33.4]} 44. Rg8 {[%clk 0:01:56.1]}
44... Rc7 {[%clk 0:01:33.9]} 45. Rxg6 {[%clk 0:01:56.4]} 45... Bxd4 {[%clk
0:01:35]} 46. Rxe6 {[%clk 0:01:56.1]} 46... Ra7 {[%clk 0:01:27.7]} 47. Rd6
{[%clk 0:01:51.2]} 47... Rxa1 {[%clk 0:01:26.5]} 48. Kxa1 {[%clk 0:01:52.7]}
48... Kc2 {[%clk 0:01:26.2]} 49. cxd4 {[%clk 0:01:51.3]} 49... b2+ {[%clk
0:01:25.3]} 50. Ka2 {[%clk 0:01:49.3]} 50... b1=Q+ {[%clk 0:01:26.2]} 51. Ka3
{[%clk 0:01:49]} 51... Qb3# {[%clk 0:01:26.9]} 0-1

[Event "*** Titled Tuesday Blitz"]
[Site "Chess.com"]
[Date "2018.04.03"]
[Round "1"]
[White "Vrolijk"]
[Black "1random"]
[Result "1-0"]
[WhiteElo "2505"]
[BlackElo "2150"]
[TimeControl "180+2"]
[EndTime "13:07:01 PDT"]
[Termination "Vrolijk won by resignation"]

1. d4 {[%clk 0:03:01.9]} 1... Nf6 {[%clk 0:02:54.5]} 2. c4 {[%clk 0:03:01.1]}
2... e6 {[%clk 0:02:55.7]} 3. Nf3 {[%clk 0:03:01.7]} 3... b6 {[%clk 0:02:54.6]}
4. g3 {[%clk 0:03:01.4]} 4... Bb7 {[%clk 0:02:55.8]} 5. Bg2 {[%clk 0:03:01]}
5... Be7 {[%clk 0:02:57.3]} 6. O-O {[%clk 0:03:02.4]} 6... O-O {[%clk
0:02:58.9]} 7. d5 {[%clk 0:03:03.7]} 7... exd5 {[%clk 0:02:58.1]} 8. Nh4 {[%clk
0:03:05.2]} 8... c6 {[%clk 0:02:51]} 9. cxd5 {[%clk 0:02:55.2]} 9... Nxd5 {[%clk
0:02:50.9]} 10. Nf5 {[%clk 0:02:56.6]} 10... Nc7 {[%clk 0:02:47.1]} 11. e4
{[%clk 0:02:57.5]} 11... d5 {[%clk 0:02:34.4]} 12. Nc3 {[%clk 0:02:56.9]} 12...
Bf6 {[%clk 0:02:26.6]} 13. exd5 {[%clk 0:02:42.6]} 13... Nxd5 {[%clk 0:02:13.9]}
14. Nxd5 {[%clk 0:02:42.4]} 14... cxd5 {[%clk 0:02:15.1]} 15. Ne3 {[%clk
0:02:44.2]} 15... Nc6 {[%clk 0:01:58.5]} 16. Nxd5 {[%clk 0:02:43.2]} 16... Bd4
{[%clk 0:01:59.7]} 17. Re1 {[%clk 0:02:21.3]} 17... Bc5 {[%clk 0:01:47.2]} 18.
Bf4 {[%clk 0:02:18.6]} 18... Rc8 {[%clk 0:01:48.5]} 19. a3 {[%clk 0:02:14.3]}
19... Re8 {[%clk 0:01:25]} 20. Rxe8+ {[%clk 0:02:01]} 20... Qxe8 {[%clk
0:01:26.1]} 21. b4 {[%clk 0:02:02.8]} 21... Bf8 {[%clk 0:01:20.1]} 22. Qg4
{[%clk 0:02:02.1]} 22... Kh8 {[%clk 0:01:09.9]} 23. Rd1 {[%clk 0:01:51]} 23...
Ne5 {[%clk 0:01:01.8]} 24. Qh5 {[%clk 0:01:46.1]} 24... Bxd5 {[%clk 0:00:28.6]}
25. Bxd5 {[%clk 0:01:44.7]} 25... Ng6 {[%clk 0:00:29.8]} 26. Be3 {[%clk
0:01:44.9]} 26... Rc3 {[%clk 0:00:25.4]} 27. Qf5 {[%clk 0:01:37.5]} 27... f6
{[%clk 0:00:18.7]} 28. h4 {[%clk 0:01:23.9]} 28... Rxa3 {[%clk 0:00:18.9]} 29.
h5 {[%clk 0:01:24.6]} 29... Ne7 {[%clk 0:00:20.2]} 30. Qe6 {[%clk 0:01:26.1]}
30... Qd8 {[%clk 0:00:15.6]} 31. h6 {[%clk 0:01:25.3]} 31... Nxd5 {[%clk
0:00:15.1]} 32. Rxd5 {[%clk 0:01:25.4]} 32... Ra1+ {[%clk 0:00:12.7]} 33. Kh2
{[%clk 0:01:25.5]} 33... Qe7 {[%clk 0:00:11.9]} 34. hxg7+ {[%clk 0:01:25.8]}
34... Kxg7 {[%clk 0:00:11.4]} 35. Rd7 {[%clk 0:01:27.2]} 1-0

[Event "*** Titled Tuesday Blitz"]
[Site "Chess.com"]
[Date "2018.04.03"]
[Round "1"]
[White "SL0M"]
[Black "GMMatamoros"]
[Result "0-1"]
[WhiteElo "1701"]
[BlackElo "2427"]
[TimeControl "180+2"]
[EndTime "13:07:03 PDT"]
[Termination "GMMatamoros won on time"]

1. Nf3 {[%clk 0:03:00.8]} 1... Nf6 {[%clk 0:03:00.3]} 2. c4 {[%clk 0:03:01.4]}
2... g6 {[%clk 0:03:01.4]} 3. g3 {[%clk 0:03:00.3]} 3... Bg7 {[%clk 0:03:02.7]}
4. Bg2 {[%clk 0:03:01.9]} 4... O-O {[%clk 0:03:04.2]} 5. O-O {[%clk 0:03:03.5]}
5... d6 {[%clk 0:03:05.6]} 6. Nc3 {[%clk 0:03:02.3]} 6... e5 {[%clk 0:03:04]} 7.
d3 {[%clk 0:03:03.1]} 7... h6 {[%clk 0:03:03.2]} 8. Rb1 {[%clk 0:02:59.8]} 8...
a5 {[%clk 0:03:04]} 9. a3 {[%clk 0:03:00.1]} 9... Re8 {[%clk 0:03:05.3]} 10. Nd2
{[%clk 0:02:53.7]} 10... c6 {[%clk 0:03:06.2]} 11. b4 {[%clk 0:02:52.7]} 11...
axb4 {[%clk 0:03:08.1]} 12. axb4 {[%clk 0:02:53]} 12... d5 {[%clk 0:03:09.4]}
13. b5 {[%clk 0:02:41.7]} 13... h5 {[%clk 0:02:46.8]} 14. bxc6 {[%clk 0:02:41]}
14... bxc6 {[%clk 0:02:48.7]} 15. cxd5 {[%clk 0:02:08.5]} 15... cxd5 {[%clk
0:02:50.6]} 16. h3 {[%clk 0:01:36.9]} 16... Be6 {[%clk 0:02:22.9]} 17. Nc4
{[%clk 0:01:18.7]} 17... Nc6 {[%clk 0:02:07.4]} 18. Bg5 {[%clk 0:01:01.6]} 18...
Ra6 {[%clk 0:01:50.9]} 19. Nd2 {[%clk 0:00:25.3]} 19... Qd7 {[%clk 0:01:37.5]}
20. Kh2 {[%clk 0:00:24.4]} 20... Nh7 {[%clk 0:01:34.8]} 21. Be3 {[%clk 0:00:05]}
21... d4 {[%clk 0:01:22.4]} 22. Nce4 {[%clk 0:00:04.8]} 22... dxe3 {[%clk
0:01:00.2]} 23. Nc5 {[%clk 0:00:05.2]} 23... Qd6 {[%clk 0:00:49.4]} 24. Nxa6
{[%clk 0:00:06.3]} 24... exd2 {[%clk 0:00:50.8]} 25. Qxd2 {[%clk 0:00:06.7]}
25... h4 {[%clk 0:00:44.4]} 0-1

[Event "*** Titled Tuesday Blitz"]
[Site "Chess.com"]
[Date "2018.04.03"]
[Round "1"]
[White "volodja49"]
[Black "Annawel"]
[Result "0-1"]
[WhiteElo "2415"]
[BlackElo "2879"]
[TimeControl "180+2"]
[EndTime "13:07:05 PDT"]
[Termination "Annawel won by resignation"]

1. d4 {[%clk 0:03:00.1]} 1... d6 {[%clk 0:02:59.7]} 2. e4 {[%clk 0:03:00.4]}
2... g6 {[%clk 0:03:00.6]} 3. c4 {[%clk 0:03:01]} 3... Bg7 {[%clk 0:03:01.4]} 4.
Nc3 {[%clk 0:03:02.4]} 4... Nf6 {[%clk 0:03:03.1]} 5. f3 {[%clk 0:03:02.6]} 5...
c5 {[%clk 0:03:02.5]} 6. dxc5 {[%clk 0:02:56.3]} 6... O-O {[%clk 0:03:02.9]} 7.
cxd6 {[%clk 0:02:56.4]} 7... exd6 {[%clk 0:02:58.8]} 8. Bf4 {[%clk 0:02:51.7]}
8... Nh5 {[%clk 0:02:54.6]} 9. Bxd6 {[%clk 0:02:39.3]} 9... Nc6 {[%clk
0:02:48.5]} 10. Bxf8 {[%clk 0:02:19.1]} 10... Qxf8 {[%clk 0:02:50.4]} 11. Qd2
{[%clk 0:02:19.9]} 11... Bh6 {[%clk 0:02:40.3]} 12. Qf2 {[%clk 0:02:19.6]} 12...
Be6 {[%clk 0:02:23.8]} 13. g3 {[%clk 0:02:15.9]} 13... Rd8 {[%clk 0:02:22.9]}
14. f4 {[%clk 0:02:06.7]} 14... Qb4 {[%clk 0:02:17]} 15. Rd1 {[%clk 0:01:45.8]}
15... Re8 {[%clk 0:02:15.3]} 16. Qd2 {[%clk 0:01:30.6]} 16... Bxc4 {[%clk
0:01:57.1]} 17. Bxc4 {[%clk 0:01:30.9]} 17... Qxc4 {[%clk 0:01:59]} 18. Nge2
{[%clk 0:01:32.1]} 18... Qc5 {[%clk 0:01:37.9]} 19. Kf1 {[%clk 0:01:07.8]} 19...
b5 {[%clk 0:01:21.2]} 20. a3 {[%clk 0:01:06.5]} 20... a5 {[%clk 0:01:22.1]} 21.
Qd5 {[%clk 0:01:05.8]} 21... Qe3 {[%clk 0:01:22.5]} 22. Rd3 {[%clk 0:01:01.5]}
22... Qb6 {[%clk 0:01:22.8]} 23. Qxb5 {[%clk 0:00:59.7]} 23... Qc7 {[%clk
0:01:24]} 24. Nd5 {[%clk 0:00:48.2]} 24... Qc8 {[%clk 0:01:22.3]} 25. Kg2 {[%clk
0:00:45.3]} 25... Rxe4 {[%clk 0:01:19]} 26. Nec3 {[%clk 0:00:45.3]} 26... Re6
{[%clk 0:01:15.1]} 27. Rhd1 {[%clk 0:00:30.7]} 27... Bf8 {[%clk 0:01:16.2]} 28.
R1d2 {[%clk 0:00:28.8]} 28... Rd6 {[%clk 0:01:09.6]} 29. Nf6+ {[%clk 0:00:20.6]}
29... Rxf6 {[%clk 0:01:09.2]} 30. Rd7 {[%clk 0:00:19.7]} 30... Re6 {[%clk
0:01:06.8]} 31. Qd5 {[%clk 0:00:20.6]} 31... Nf6 {[%clk 0:01:07.4]} 32. Qd3
{[%clk 0:00:15.8]} 32... Nxd7 {[%clk 0:01:06]} 33. Qxd7 {[%clk 0:00:17.7]} 33...
Qxd7 {[%clk 0:01:07.5]} 0-1

[Event "*** Titled Tuesday Blitz"]
[Site "Chess.com"]
[Date "2018.04.03"]
[Round "1"]
[White "comedy_of_errors"]
[Black "Hikaru"]
[Result "0-1"]
[WhiteElo "2424"]
[BlackElo "2989"]
[TimeControl "180+2"]
[EndTime "13:07:26 PDT"]
[Termination "Hikaru won by resignation"]

1. Nf3 {[%clk 0:03:00.3]} 1... d5 {[%clk 0:02:55.4]} 2. g3 {[%clk 0:03:01]} 2...
g6 {[%clk 0:02:55.7]} 3. Bg2 {[%clk 0:03:02.2]} 3... Bg7 {[%clk 0:02:57.6]} 4.
O-O {[%clk 0:03:00.5]} 4... e5 {[%clk 0:02:57.8]} 5. c4 {[%clk 0:03:00.5]} 5...
d4 {[%clk 0:02:58.6]} 6. d3 {[%clk 0:03:00.8]} 6... Ne7 {[%clk 0:02:59.4]} 7. b4
{[%clk 0:03:01.2]} 7... O-O {[%clk 0:03:00.5]} 8. a4 {[%clk 0:03:01.9]} 8... h6
{[%clk 0:02:58.9]} 9. b5 {[%clk 0:02:55.3]} 9... c5 {[%clk 0:02:58]} 10. Ra2
{[%clk 0:02:47.8]} 10... a5 {[%clk 0:02:53]} 11. e3 {[%clk 0:02:47.4]} 11...
dxe3 {[%clk 0:02:50.3]} 12. fxe3 {[%clk 0:02:47.3]} 12... Ra7 {[%clk 0:02:50.5]}
13. Nc3 {[%clk 0:02:47.1]} 13... b6 {[%clk 0:02:51.5]} 14. Raf2 {[%clk
0:02:41.7]} 14... Rd7 {[%clk 0:02:49.6]} 15. Ne1 {[%clk 0:02:42.8]} 15... Bb7
{[%clk 0:02:50.5]} 16. e4 {[%clk 0:02:36.3]} 16... Rd6 {[%clk 0:02:41.8]} 17.
Nd5 {[%clk 0:01:54.8]} 17... Nd7 {[%clk 0:02:41]} 18. Nc2 {[%clk 0:01:48.4]}
18... Nc8 {[%clk 0:02:38.9]} 19. Nce3 {[%clk 0:01:46.6]} 19... Nf6 {[%clk
0:02:39]} 20. Nxf6+ {[%clk 0:01:40.7]} 20... Bxf6 {[%clk 0:02:40.2]} 21. Ng4
{[%clk 0:01:37.5]} 21... Bg5 {[%clk 0:02:38.4]} 22. Nxe5 {[%clk 0:01:19.5]}
22... Bf6 {[%clk 0:02:14.2]} 23. Ng4 {[%clk 0:01:15.6]} 23... Bd4 {[%clk
0:02:15.4]} 24. Bxh6 {[%clk 0:00:59]} 24... Re8 {[%clk 0:02:09.3]} 25. Kh1
{[%clk 0:00:56.8]} 25... Bxf2 {[%clk 0:02:09.9]} 26. Nxf2 {[%clk 0:00:58.1]}
26... f5 {[%clk 0:02:10.5]} 27. Qc1 {[%clk 0:00:54.6]} 27... Rde6 {[%clk
0:02:07.9]} 28. Qf4 {[%clk 0:00:51.2]} 28... Nd6 {[%clk 0:02:08.5]} 29. Bg5
{[%clk 0:00:45.7]} 29... Qd7 {[%clk 0:02:07.9]} 30. Qh4 {[%clk 0:00:38.9]} 30...
Nf7 {[%clk 0:02:06.3]} 31. Bf4 {[%clk 0:00:33.9]} 31... Qd8 {[%clk 0:02:02]} 32.
Qxd8 {[%clk 0:00:31.9]} 32... Rxd8 {[%clk 0:02:03.9]} 33. exf5 {[%clk
0:00:31.4]} 33... Bxg2+ {[%clk 0:02:05.8]} 34. Kxg2 {[%clk 0:00:32.4]} 34...
gxf5 {[%clk 0:02:07.7]} 35. Kf3 {[%clk 0:00:32]} 35... Kg7 {[%clk 0:02:07]} 36.
h4 {[%clk 0:00:30.5]} 36... Kg6 {[%clk 0:02:08]} 37. g4 {[%clk 0:00:30.7]} 37...
fxg4+ {[%clk 0:02:08.2]} 38. Kxg4 {[%clk 0:00:32.1]} 38... Rd4 {[%clk
0:02:09.5]} 39. h5+ {[%clk 0:00:32.6]} 39... Kg7 {[%clk 0:02:11]} 40. Rg1 {[%clk
0:00:29.6]} 40... Nh6+ {[%clk 0:02:04.9]} 41. Kf3+ {[%clk 0:00:28.8]} 41... Kf7
{[%clk 0:02:06.4]} 42. Bxh6 {[%clk 0:00:28.7]} 42... Rxh6 {[%clk 0:02:07.6]} 43.
Rg5 {[%clk 0:00:27.6]} 43... Rf6+ {[%clk 0:02:08.1]} 44. Ke3 {[%clk 0:00:28.1]}
44... Rh4 {[%clk 0:02:09.4]} 45. Ne4 {[%clk 0:00:29.3]} 45... Rh3+ {[%clk
0:02:10.9]} 46. Ke2 {[%clk 0:00:30.4]} 46... Rh2+ {[%clk 0:02:12.1]} 47. Ke3
{[%clk 0:00:31.4]} 47... Rf1 {[%clk 0:02:13.6]} 48. Rd5 {[%clk 0:00:30.6]} 48...
Ke7 {[%clk 0:02:09.9]} 49. Re5+ {[%clk 0:00:27]} 49... Kd8 {[%clk 0:02:10.8]}
50. Rd5+ {[%clk 0:00:26]} 50... Kc7 {[%clk 0:02:11.8]} 51. Rg5 {[%clk
0:00:27.6]} 51... Rh3+ {[%clk 0:02:12.3]} 52. Ke2 {[%clk 0:00:28.6]} 52... Ra1
{[%clk 0:02:13.9]} 53. Rg7+ {[%clk 0:00:28.7]} 53... Kd8 {[%clk 0:02:14.7]} 54.
Rg8+ {[%clk 0:00:30.1]} 54... Ke7 {[%clk 0:02:15.6]} 55. Rg7+ {[%clk 0:00:29.5]}
55... Kf8 {[%clk 0:02:16.3]} 56. Rg6 {[%clk 0:00:31.1]} 56... Ra2+ {[%clk
0:02:16.7]} 57. Kf1 {[%clk 0:00:29.1]} 57... Rh1+ {[%clk 0:02:17.7]} 0-1

[Event "*** Titled Tuesday Blitz"]
[Site "Chess.com"]
[Date "2018.04.03"]
[Round "1"]
[White "Patzel09"]
[Black "r31415"]
[Result "1-0"]
[WhiteElo "2530"]
[BlackElo "2187"]
[TimeControl "180+2"]
[EndTime "13:07:26 PDT"]
[Termination "Patzel09 won by checkmate"]

1. e4 {[%clk 0:03:01.9]} 1... d6 {[%clk 0:03:00.2]} 2. d4 {[%clk 0:03:02.7]}
2... Nf6 {[%clk 0:03:00.7]} 3. Nc3 {[%clk 0:03:02.9]} 3... g6 {[%clk 0:03:01.1]}
4. Nf3 {[%clk 0:03:02.2]} 4... Bg7 {[%clk 0:03:01.7]} 5. Bc4 {[%clk 0:03:02.4]}
5... O-O {[%clk 0:03:01]} 6. O-O {[%clk 0:03:03.4]} 6... Nxe4 {[%clk 0:03:00.6]}
7. Nxe4 {[%clk 0:03:01.8]} 7... d5 {[%clk 0:03:02]} 8. Bd3 {[%clk 0:03:03.6]}
8... dxe4 {[%clk 0:03:03.9]} 9. Bxe4 {[%clk 0:03:04]} 9... c6 {[%clk 0:03:00.3]}
10. Re1 {[%clk 0:03:02.4]} 10... Nd7 {[%clk 0:03:00.4]} 11. Bd3 {[%clk
0:03:01.1]} 11... Nf6 {[%clk 0:02:58.7]} 12. h3 {[%clk 0:03:00.1]} 12... Re8
{[%clk 0:02:56.8]} 13. c3 {[%clk 0:02:57.8]} 13... Qc7 {[%clk 0:02:55.3]} 14.
Ne5 {[%clk 0:02:56.2]} 14... Be6 {[%clk 0:02:51.9]} 15. Bf4 {[%clk 0:02:56.7]}
15... Qb6 {[%clk 0:02:39.5]} 16. Qe2 {[%clk 0:02:55.1]} 16... Rad8 {[%clk
0:02:33.8]} 17. Nc4 {[%clk 0:02:48.8]} 17... Bxc4 {[%clk 0:02:21]} 18. Bxc4
{[%clk 0:02:50.7]} 18... Nd5 {[%clk 0:02:18]} 19. Bg3 {[%clk 0:02:44.8]} 19...
c5 {[%clk 0:02:07.6]} 20. dxc5 {[%clk 0:02:38.2]} 20... Qxc5 {[%clk 0:02:09.5]}
21. Rad1 {[%clk 0:02:36.4]} 21... e6 {[%clk 0:01:59.9]} 22. Bxd5 {[%clk
0:02:05.6]} 22... Rxd5 {[%clk 0:01:59]} 23. Rxd5 {[%clk 0:02:06.8]} 23... Qxd5
{[%clk 0:02:00.6]} 24. Rd1 {[%clk 0:02:08.4]} 24... Qc6 {[%clk 0:01:31.6]} 25.
Rd6 {[%clk 0:02:08.8]} 25... Qa4 {[%clk 0:01:15.8]} 26. b3 {[%clk 0:02:07.5]}
26... Qa3 {[%clk 0:01:07.8]} 27. c4 {[%clk 0:02:02.6]} 27... Bb2 {[%clk
0:00:48.7]} 28. Rd7 {[%clk 0:01:57.4]} 28... Qxa2 {[%clk 0:00:34.6]} 29. Rxb7
{[%clk 0:01:58.5]} 29... a5 {[%clk 0:00:29.5]} 30. Qf3 {[%clk 0:01:54.6]} 30...
Qb1+ {[%clk 0:00:30.2]} 31. Kh2 {[%clk 0:01:55.5]} 31... Qf5 {[%clk 0:00:31.7]}
32. Qc6 {[%clk 0:01:45.6]} 32... Rd8 {[%clk 0:00:23.7]} 33. Rb5 {[%clk
0:01:41.4]} 33... Qb1 {[%clk 0:00:21.7]} 34. Rxa5 {[%clk 0:01:29.7]} 34... Rd1
{[%clk 0:00:22.2]} 35. Bf4 {[%clk 0:01:29.2]} 35... Rh1+ {[%clk 0:00:21.2]} 36.
Kg3 {[%clk 0:01:29.9]} 36... Bc1 {[%clk 0:00:09.8]} 37. Qe8+ {[%clk 0:01:27.5]}
37... Kg7 {[%clk 0:00:10.9]} 38. Be5+ {[%clk 0:01:29.4]} 38... Kh6 {[%clk
0:00:11.6]} 39. Qf8+ {[%clk 0:01:25.5]} 39... Kh5 {[%clk 0:00:13.1]} 40. Bf4+
{[%clk 0:01:21.2]} 40... f5 {[%clk 0:00:13.7]} 41. Qh6# {[%clk 0:01:21.7]} 1-0